fUSD/lending_fUSD_20250814
["ID","MTS","AMOUNT","RATE_DAILY","PERIOD"]
[379184426,1755179460905,-400.0,0.00027534,2]
[379184428,1755179460915,-2858.53,0.00027534,2]
[379184429,1755179460924,-400.0,0.00027534,2]
[379184432,1755179460934,-400.0,0.00027534,2]
[379184434,1755179460944,-641.16,0.00027534,2]
[379184436,1755179460954,-1241.41,0.00027534,2]
[379184438,1755179460964,-400.0,0.00027534,2]
[379184440,1755179460975,-921.26,0.00027534,2]
[379184442,1755179460986,-1449.77,0.00027534,2]
[379184444,1755179460996,-413.4950578,0.00027534,2]
[379184446,1755179461006,-1956.15,0.00027534,2]
[379184448,1755179461016,-400.0,0.00027534,2]
[379184450,1755179461026,-543.09,0.00027534,2]
[379184452,1755179461036,-5381.46,0.00027534,2]
[379184454,1755179461045,-400.0,0.00027534,2]
[379184456,1755179461056,-814.38,0.00027534,2]
[379184458,1755179461066,-446.71,0.00027534,2]
[379184460,1755179461075,-400.0,0.00027534,2]
[379184462,1755179461085,-795.16,0.00027534,2]
[379184464,1755179461094,-1595.82,0.00027534,2]
[379184466,1755179461104,-411.97227368,0.00027534,2]
[379184468,1755179461113,-400.0,0.00027534,2]
[379184470,1755179461123,-400.0,0.00027534,2]
[379184472,1755179461132,-400.0,0.00027534,2]
[379184474,1755179461141,-1078.24,0.00027534,2]
[379184476,1755179461152,-442.49,0.00027534,2]
[379184478,1755179461161,-400.0,0.00027534,2]
[379184480,1755179461171,-400.0,0.00027534,2]
[379184482,1755179461181,-3086.11,0.00027534,2]
[379184484,1755179461190,-453.09,0.00027534,2]
[379184486,1755179461200,-400.0,0.00027534,2]
[379184488,1755179461209,-400.0,0.00027534,2]
[379184490,1755179461219,-6642.57,0.00027534,2]
[379184492,1755179461233,-3224.29,0.00027534,2]
[379184494,1755179461243,-400.0,0.00027534,2]
[379184496,1755179461253,-176.83,0.00027534,2]
[379184499,1755179461263,-656.65,0.00027534,2]
[379184501,1755179461272,-565.68,0.00027534,2]
[379184503,1755179461282,-400.0,0.00027534,2]
[379184505,1755179461294,-3017.11,0.00027534,2]
[379184507,1755179461304,-4191.59,0.00027534,2]
[379184509,1755179461314,-1888.33,0.00027534,2]
[379184510,1755179461324,-400.0,0.00027534,2]
[379184513,1755179461334,-3517.04,0.00027534,2]
[379184515,1755179461344,-401.2,0.00027534,2]
[379184517,1755179461354,-399.0,0.00027534,2]
[379184518,1755179461363,-4579.52,0.00027534,2]
[379184521,1755179461375,-1100.77,0.00027534,2]
[379184522,1755179461385,-484.72,0.00027534,2]
[379184524,1755179461394,-3620.16,0.00027534,2]
[379184526,1755179461404,-3401.4,0.00027534,2]
[379184528,1755179461413,-1051.43,0.00027534,2]
[379184530,1755179461423,-2428.44,0.00027534,2]
[379184532,1755179461432,-1016.71,0.00027534,2]
[379184534,1755179461442,-400.0,0.00027534,2]
[379184536,1755179461451,-1128.91,0.00027534,2]
[379184538,1755179461461,-790.26,0.00027534,2]
[379184540,1755179461471,-1019.04,0.00027534,2]
[379184542,1755179461486,-1696.5,0.00027534,2]
[379184545,1755179461495,-2013.35,0.00027534,2]
[379184547,1755179461505,-5996.23,0.00027534,2]
[379184549,1755179461514,-400.0,0.00027534,2]
[379184551,1755179461524,-1415.04,0.00027534,2]
[379184553,1755179461533,-400.0,0.00027534,2]
[379184555,1755179461542,-915.67,0.00027534,2]
[379184557,1755179461552,-542.63,0.00027534,2]
[379184559,1755179461561,-747.97,0.00027534,2]
[379184561,1755179461571,-405.72067032,0.00027534,2]
[379184563,1755179461580,-869.62,0.00027534,2]
[379184565,1755179461590,-1042.17,0.00027534,2]
[379184567,1755179461600,-6061.51,0.00027534,2]
[379184569,1755179461610,-400.0,0.00027534,2]
[379184571,1755179461620,-2626.6,0.00027534,2]
[379184573,1755179461629,-4220.21,0.00027534,2]
[379184575,1755179461638,-400.0,0.00027534,2]
[379184577,1755179461647,-2047.87,0.00027534,2]
[379184579,1755179461656,-400.0,0.00027534,2]
[379184581,1755179461666,-400.0,0.00027534,2]
[379184583,1755179461676,-4396.03,0.00027534,2]
[379184585,1755179461686,-1857.87,0.00027534,2]
[379184587,1755179461695,-1249.46,0.00027534,2]
[379184589,1755179461705,-2723.54,0.00027534,2]
[379184591,1755179461714,-400.0,0.00027534,2]
[379184593,1755179461726,-583.89,0.00027534,2]
[379184595,1755179461736,-400.0,0.00027534,2]
[379184597,1755179461745,-1883.5,0.00027534,2]
[379184599,1755179461755,-3614.05,0.00027534,2]
[379184601,1755179461765,-400.0,0.00027534,2]
[379184603,1755179461774,-400.0,0.00027534,2]
[379184605,1755179461784,-2078.02,0.00027534,2]
[379184607,1755179461794,-2923.02,0.00027534,2]
[379184609,1755179461803,-760.5,0.00027534,2]
[379184611,1755179461812,-2398.85,0.00027534,2]
[379184613,1755179461822,-400.0,0.00027534,2]
[379184615,1755179461832,-6044.26,0.00027534,2]
[379184617,1755179461842,-400.0,0.00027534,2]
[379184619,1755179461851,-1098.22,0.00027534,2]
[379184621,1755179461861,-5662.89,0.00027534,2]
[379184623,1755179461871,-587.83,0.00027534,2]
[379184625,1755179461880,-400.0,0.00027534,2]
[379184627,1755179461890,-3120.32,0.00027534,2]
[379184629,1755179461900,-400.0,0.00027534,2]
[379184630,1755179461909,-2752.47,0.00027534,2]
[379184631,1755179461919,-400.0,0.00027534,2]
[379184632,1755179462055,-1829.0,0.00027534,2]
[379184633,1755179462065,-409.44,0.00027534,2]
[379184635,1755179462074,-3195.56,0.00027534,2]
[379184637,1755179462086,-2066.78,0.00027534,2]
[379184639,1755179462097,-3143.2,0.00027534,2]
[379184641,1755179462106,-683.52,0.00027534,2]
[379184643,1755179462116,-833.07,0.00027534,2]
[379184645,1755179462125,-649.45,0.00027534,2]
[379184647,1755179462135,-400.0,0.00027534,2]
[379184649,1755179462144,-1720.48,0.00027534,2]
[379184651,1755179462153,-4322.55,0.00027534,2]
[379184653,1755179462163,-440.75,0.00027534,2]
[379184655,1755179462173,-953.78,0.00027534,2]
[379184657,1755179462183,-400.0,0.00027534,2]
[379184659,1755179462193,-400.0,0.00027534,2]
[379184661,1755179462203,-400.0,0.00027534,2]
[379184663,1755179462213,-400.0,0.00027534,2]
[379184665,1755179462222,-439.32,0.00027534,2]
[379184667,1755179462234,-400.0,0.00027534,2]
[379184669,1755179462244,-2313.64,0.00027534,2]
[379184671,1755179462254,-400.0,0.00027534,2]
[379184673,1755179462263,-400.0,0.00027534,2]
[379184675,1755179462273,-1165.71,0.00027534,2]
[379184677,1755179462283,-779.31,0.00027534,2]
[379184679,1755179462295,-3028.87,0.00027534,2]
[379184681,1755179462306,-400.0,0.00027534,2]
[379184683,1755179462315,-400.0,0.00027534,2]
[379184685,1755179462325,-407.58,0.00027534,2]
[379184687,1755179462336,-2734.75,0.00027534,2]
[379184688,1755179462346,-1732.49,0.00027534,2]
[379184689,1755179462356,-876.06,0.00027534,2]
[379184690,1755179462368,-6366.92,0.00027534,2]
[379184691,1755179462377,-1346.52,0.00027534,2]
[379184692,1755179462387,-467.55,0.00027534,2]
[379184693,1755179462397,-400.0,0.00027534,2]
[379184694,1755179462407,-400.0,0.00027534,2]
[379184695,1755179462416,-438.48,0.00027534,2]
[379184696,1755179462426,-610.39,0.00027534,2]
[379184697,1755179462435,-3172.54,0.00027534,2]
[379184698,1755179462444,-3517.13,0.00027534,2]
[379184699,1755179462454,-6405.26,0.00027534,2]
[379184700,1755179462463,-400.0,0.00027534,2]
[379184701,1755179462474,-633.37,0.00027534,2]
[379184702,1755179462484,-421.77,0.00027534,2]
[379184703,1755179462495,-400.0,0.00027534,2]
[379184704,1755179462504,-400.0,0.00027534,2]
[379184705,1755179462514,-400.0,0.00027534,2]
[379184706,1755179462523,-2676.86,0.00027534,2]
[379184707,1755179462532,-547.75847687,0.00027534,2]
[379184708,1755179462542,-4952.31,0.00027534,2]
[379184709,1755179462551,-400.0,0.00027534,2]
[379184710,1755179462561,-400.0,0.00027534,2]
[379184711,1755179462570,-4631.05,0.00027534,2]
[379184712,1755179462579,-470.06,0.00027534,2]
[379184713,1755179462589,-4589.95,0.00027534,2]
[379184714,1755179462599,-396.1103147,0.00027534,2]
[379184715,1755179462608,-1013.47,0.00027534,2]
[379184716,1755179462617,-542.39,0.00027534,2]
[379184717,1755179462627,-512.73,0.00027534,2]
[379184718,1755179462637,-400.0,0.00027534,2]
[379184719,1755179462647,-400.0,0.00027534,2]
[379184721,1755179462657,-1125.63,0.00027534,2]
[379184722,1755179462666,-1659.86,0.00027534,2]
[379184723,1755179462675,-469.01,0.00027534,2]
[379184724,1755179462685,-4842.72,0.00027534,2]
[379184725,1755179462694,-400.0,0.00027534,2]
[379184727,1755179462704,-1996.59,0.00027534,2]
[379184728,1755179462714,-1253.2,0.00027534,2]
[379184729,1755179462726,-4700.94,0.00027534,2]
[379184730,1755179462736,-400.0,0.00027534,2]
[379184731,1755179462745,-412.22,0.00027534,2]
[379184732,1755179462754,-422.09,0.00027534,2]
[379184734,1755179462763,-2680.43,0.00027534,2]
[379184736,1755179462773,-1336.29,0.00027534,2]
[379184738,1755179462783,-400.0,0.00027534,2]
[379184740,1755179462792,-2693.95,0.00027534,2]
[379184742,1755179462802,-948.84,0.00027534,2]
[379184744,1755179462811,-400.0,0.00027534,2]
[379184746,1755179462821,-2964.42,0.00027534,2]
[379184748,1755179462832,-400.0,0.00027534,2]
[379184750,1755179462841,-646.66,0.00027534,2]
[379184752,1755179462851,-400.0,0.00027534,2]
[379184754,1755179462861,-602.0,0.00027534,2]
[379184756,1755179462870,-3525.56,0.00027534,2]
[379184758,1755179462880,-400.0,0.00027534,2]
[379184760,1755179462889,-348.66,0.00027534,2]
[379184762,1755179462899,-400.0,0.00027534,2]
[379184764,1755179462909,-400.0,0.00027534,2]
[379184766,1755179462918,-1345.800827,0.00027534,2]
[379184768,1755179462927,-2263.2565,0.00027534,2]
[379184770,1755179462937,-400.0,0.00027534,2]
[379184772,1755179462947,-1249.882923,0.00027534,7]
[379184774,1755179462956,-3040.22,0.00027534,2]
[379184776,1755179462965,-3964.46,0.00027534,2]
[379184778,1755179462977,-400.0,0.00027534,2]
[379184780,1755179462986,-1151.41,0.00027534,2]
[379184782,1755179462996,-1585.64,0.00027534,2]
[379184784,1755179463005,-435.88332264,0.00027534,2]
[379184786,1755179463016,-1249.882923,0.00027534,7]
[379184788,1755179463026,-507.53,0.00027534,2]
[379184790,1755179463036,-2997.23,0.00027534,2]
[379184792,1755179463046,-1401.87,0.00027534,2]
[379184794,1755179463056,-970.75,0.00027534,2]
[379184796,1755179463067,-1013.12,0.00027534,2]
[379184798,1755179463076,-400.0,0.00027534,2]
[379184800,1755179463086,-2621.0,0.00027534,2]
[379184801,1755179463096,-4281.06,0.00027534,2]
[379184803,1755179463105,-244.16869,0.00027534,2]
[379184805,1755179463115,-2241.05,0.00027534,2]
[379184807,1755179463125,-3832.87,0.00027534,2]
[379184809,1755179463137,-2280.38,0.00027534,2]
[379184811,1755179463147,-405.92718379,0.00027534,2]
[379184814,1755179463157,-400.0,0.00027534,2]
[379184815,1755179463167,-550.18,0.00027534,2]
[379184818,1755179463177,-3937.47,0.00027534,2]
[379184819,1755179463187,-1110.14,0.00027534,2]
[379184821,1755179463197,-3469.49,0.00027534,2]
[379184824,1755179463207,-442.77,0.00027534,2]
[379184825,1755179463216,-921.088257,0.00027534,7]
[379184827,1755179463228,-400.0,0.00027534,2]
[379184830,1755179463238,-921.088257,0.00027534,7]
[379184832,1755179463248,-532.57,0.00027534,2]
[379184834,1755179463259,-400.0,0.00027534,2]
[379184836,1755179463268,-1874.239285,0.00027534,2]
[379184838,1755179463277,-400.0,0.00027534,2]
[379184840,1755179463288,-400.0,0.00027534,2]
[379184841,1755179463300,-1863.76,0.00027534,2]
[379184843,1755179463310,-955.05,0.00027534,2]
[379184845,1755179463319,-921.088257,0.00027534,7]
[379184847,1755179463329,-921.088257,0.00027534,7]
[379184849,1755179463339,-2043.25,0.00027534,2]
[379184851,1755179463349,-4862.92,0.00027534,2]
[379184853,1755179463358,-400.0,0.00027534,2]
[379184855,1755179463367,-297.33446219,0.00027534,2]
[379184857,1755179463379,-1115.2,0.00027534,2]
[379184859,1755179463390,-2524.08,0.00027534,2]
[379184861,1755179463400,-400.0,0.00027534,2]
[379184863,1755179463409,-400.0,0.00027534,2]
[379184865,1755179463419,-400.0,0.00027534,2]
[379184867,1755179463429,-400.0,0.00027534,2]
[379184869,1755179463439,-767.07,0.00027534,2]
[379184871,1755179463449,-603.06,0.00027534,2]
[379184873,1755179463458,-5472.79,0.00027534,2]
[379184875,1755179463467,-2567.61,0.00027534,2]
[379184877,1755179463479,-1520.48,0.00027534,2]
[379184879,1755179463489,-400.0,0.00027534,2]
[379184881,1755179463499,-400.0,0.00027534,2]
[379184883,1755179463509,-800.51,0.00027534,2]
[379184885,1755179463518,-400.0,0.00027534,2]
[379184887,1755179463528,-400.0,0.00027534,2]
[379184889,1755179463538,-1203.84,0.00027534,2]
[379184891,1755179463547,-4022.99,0.00027534,2]
[379184893,1755179463557,-150.664672,0.00027534,2]
[379184895,1755179463568,-430.18,0.00027534,2]
[379184897,1755179463577,-628.0,0.00027534,2]
[379184899,1755179463587,-449.55237527,0.00027534,2]
[379184901,1755179463597,-400.0,0.00027534,2]
[379184903,1755179463606,-400.0,0.00027534,2]
[379184905,1755179463616,-400.0,0.00027534,2]
[379184907,1755179463625,-2576.65,0.00027534,2]
[379184909,1755179463635,-2704.51,0.00027534,2]
[379184911,1755179463644,-2372.72,0.00027534,2]
[379184913,1755179463654,-400.0,0.00027534,2]
[379184915,1755179463663,-1470.71,0.00027534,2]
[379184917,1755179463672,-495.89,0.00027534,2]
[379184919,1755179463681,-400.0,0.00027534,2]
[379184921,1755179463691,-877.22,0.00027534,2]
[379184923,1755179463701,-2005.33,0.00027534,2]
[379184925,1755179463711,-400.0,0.00027534,2]
[379184927,1755179463721,-1636.72,0.00027534,2]
[379184929,1755179463732,-4962.3,0.00027534,2]
[379184931,1755179463742,-400.0,0.00027534,2]
[379184933,1755179463752,-400.0,0.00027534,2]
[379184935,1755179463761,-3489.73,0.00027534,2]
[379184937,1755179463770,-1488.37,0.00027534,2]
[379184939,1755179463780,-400.0,0.00027534,2]
[379184941,1755179463790,-400.0,0.00027534,2]
[379184943,1755179463799,-845.89,0.00027534,2]
[379184945,1755179463808,-588.14,0.00027534,2]
[379184947,1755179463818,-1640.18,0.00027534,2]
[379184949,1755179463827,-400.0,0.00027534,2]
[379184951,1755179463836,-400.0,0.00027534,2]
[379184953,1755179463846,-400.0,0.00027534,2]
[379184955,1755179463856,-4053.73,0.00027534,2]
[379184957,1755179463865,-3178.77,0.00027534,2]
[379184959,1755179463875,-1419.89,0.00027534,2]
[379184961,1755179463885,-4054.62,0.00027534,2]
[379184963,1755179463894,-945.16,0.00027534,2]
[379184965,1755179463907,-400.0,0.00027534,2]
[379184967,1755179463918,-400.0,0.00027534,2]
[379184969,1755179463927,-151.0,0.00027534,7]
[379184971,1755179463938,-4199.46,0.00027534,2]
[379184973,1755179463948,-151.0,0.00027534,7]
[379184975,1755179463958,-400.0,0.00027534,2]
[379184977,1755179463968,-151.0,0.00027534,7]
[379184979,1755179463979,-4118.68,0.00027534,2]
[379184981,1755179463989,-151.0,0.00027534,7]
[379184983,1755179463999,-400.0,0.00027534,2]
[379184985,1755179464009,-400.0,0.00027534,2]
[379184987,1755179464018,-400.0,0.00027534,2]
[379184989,1755179464028,-600.65,0.00027534,2]
[379184991,1755179464038,-400.0,0.00027534,2]
[379184993,1755179464047,-3346.63,0.00027534,2]
[379184995,1755179464057,-3485.71,0.00027534,2]
[379184997,1755179464066,-400.0,0.00027534,2]
[379184999,1755179464076,-723.12,0.00027534,2]
[379185001,1755179464085,-400.0,0.00027534,2]
[379185003,1755179464095,-434.12,0.00027534,2]
[379185005,1755179464104,-400.0,0.00027534,2]
[379185007,1755179464113,-400.0,0.00027534,2]
[379185009,1755179464123,-400.0,0.00027534,2]
[379185011,1755179464132,-400.0,0.00027534,2]
[379185013,1755179464142,-725.53,0.00027534,2]
[379185015,1755179464151,-2032.37,0.00027534,2]
[379185017,1755179464161,-400.0,0.00027534,2]
[379185019,1755179464171,-400.0,0.00027534,2]
[379185020,1755179464180,-3404.46,0.00027534,2]
[379185022,1755179464189,-400.0,0.00027534,2]
[379185024,1755179464199,-1129.34,0.00027534,2]
[379185026,1755179464208,-400.0,0.00027534,2]
[379185028,1755179464218,-1686.02,0.00027534,2]
[379185030,1755179464229,-2117.86,0.00027534,2]
[379185032,1755179464239,-400.0,0.00027534,2]
[379185034,1755179464248,-1102.35,0.00027534,2]
[379185036,1755179464257,-1368.51,0.00027534,2]
[379185038,1755179464266,-496.57,0.00027534,2]
[379185040,1755179464276,-956.37,0.00027534,2]
[379185042,1755179464286,-478.3,0.00027534,2]
[379185044,1755179464299,-400.0,0.00027534,2]
[379185046,1755179464308,-400.0,0.00027534,2]
[379185048,1755179464317,-1490.5,0.00027534,2]
[379185049,1755179464327,-400.0,0.00027534,2]
[379185050,1755179464337,-1617.79,0.00027534,2]
[379185051,1755179464346,-400.0,0.00027534,2]
[379185052,1755179464356,-2387.42,0.00027534,2]
[379185053,1755179464366,-2471.16,0.00027534,2]
[379185054,1755179464376,-2640.82,0.00027534,2]
[379185055,1755179464385,-400.0,0.00027534,2]
[379185056,1755179464395,-1417.13,0.00027534,2]
[379185057,1755179464405,-1255.24,0.00027534,2]
[379185058,1755179464416,-2041.1,0.00027534,2]
[379185059,1755179464426,-400.0,0.00027534,2]
[379185061,1755179464437,-1827.21,0.00027534,2]
[379185062,1755179464447,-228.83,0.00027534,2]
[379185063,1755179464458,-400.0,0.00027534,2]
[379185064,1755179464468,-733.3,0.00027534,2]
[379185065,1755179464480,-400.0,0.00027534,2]
[379185066,1755179464490,-2648.4,0.00027534,2]
[379185067,1755179464500,-1966.84,0.00027534,2]
[379185068,1755179464509,-400.0,0.00027534,2]
[379185070,1755179464519,-400.0,0.00027534,2]
[379185071,1755179464529,-1228.52,0.00027534,2]
[379185072,1755179464538,-400.0,0.00027534,2]
[379185073,1755179464547,-1042.12,0.00027534,2]
[379185074,1755179464557,-2391.98,0.00027534,2]
[379185075,1755179464567,-400.0,0.00027534,2]
[379185076,1755179464576,-2760.56,0.00027534,2]
[379185077,1755179464586,-649.39,0.00027534,2]
[379185078,1755179464595,-400.0,0.00027534,2]
[379185079,1755179464605,-3078.34,0.00027534,2]
[379185080,1755179464614,-400.0,0.00027534,2]
[379185081,1755179464624,-3830.22,0.00027534,2]
[379185082,1755179464633,-3538.65,0.00027534,2]
[379185083,1755179464642,-2394.12,0.00027534,2]
[379185084,1755179464652,-400.0,0.00027534,2]
[379185085,1755179464662,-565.99,0.00027534,2]
[379185086,1755179464672,-400.0,0.00027534,2]
[379185087,1755179464682,-533.95,0.00027534,2]
[379185089,1755179464691,-400.0,0.00027534,2]
[379185090,1755179464701,-838.88,0.00027534,2]
[379185091,1755179464711,-400.0,0.00027534,2]
[379185092,1755179464721,-2740.37,0.00027534,2]
[379185093,1755179464734,-503.05215795,0.00027534,2]
[379185094,1755179464744,-2581.02,0.00027534,2]
[379185095,1755179464753,-377.12,0.00027534,2]
[379185096,1755179464763,-400.0,0.00027534,2]
[379185097,1755179464773,-1770.66,0.00027534,2]
[379185098,1755179464782,-2494.86,0.00027534,2]
[379185099,1755179464792,-3894.47,0.00027534,2]
[379185100,1755179464801,-1318.86,0.00027534,2]
[379185101,1755179464810,-400.0,0.00027534,2]
[379185102,1755179464820,-400.0,0.00027534,2]
[379185103,1755179464830,-283.8055683,0.00027534,2]
[379185104,1755179464839,-2679.99,0.00027534,2]
[379185105,1755179464849,-2014.5,0.00027534,2]
[379185106,1755179464859,-400.0,0.00027534,2]
[379185107,1755179464868,-400.0,0.00027534,2]
[379185108,1755179464878,-418.71,0.00027534,2]
[379185109,1755179464887,-1728.76,0.00027534,2]
[379185110,1755179464897,-574.39,0.00027534,2]
[379185111,1755179464906,-400.0,0.00027534,2]
[379185112,1755179464916,-1222.6,0.00027534,2]
[379185113,1755179464925,-400.0,0.00027534,2]
[379185114,1755179464935,-953.48,0.00027534,2]
[379185115,1755179464944,-3147.47,0.00027534,2]
[379185116,1755179464953,-885.05,0.00027534,2]
[379185117,1755179464963,-400.0,0.00027534,2]
[379185118,1755179464972,-1666.83,0.00027534,2]
[379185119,1755179464985,-400.0,0.00027534,2]
[379185120,1755179464995,-1689.96,0.00027534,2]
[379185121,1755179465004,-737.75,0.00027534,2]
[379185122,1755179465014,-400.0,0.00027534,2]
[379185123,1755179465023,-400.0,0.00027534,2]
[379185124,1755179465033,-477.74,0.00027534,2]
[379185125,1755179465043,-989.87,0.00027534,2]
[379185126,1755179465053,-400.0,0.00027534,2]
[379185127,1755179465062,-1812.48,0.00027534,2]
[379185128,1755179465072,-400.0,0.00027534,2]
[379185129,1755179465081,-400.0,0.00027534,2]
[379185130,1755179465092,-2460.76,0.00027534,2]
[379185131,1755179465101,-3392.97,0.00027534,2]
[379185132,1755179465111,-400.0,0.00027534,2]
[379185133,1755179465121,-771.64,0.00027534,2]
[379185134,1755179465130,-1422.63,0.00027534,2]
[379185135,1755179465141,-3951.37,0.00027534,2]
[379185136,1755179465150,-698.98,0.00027534,2]
[379185137,1755179465161,-400.0,0.00027534,2]
[379185138,1755179465171,-2447.93,0.00027534,2]
[379185139,1755179465180,-493.11,0.00027534,2]
[379185140,1755179465190,-400.0,0.00027534,2]
[379185141,1755179465200,-1849.35,0.00027534,2]
[379185142,1755179465209,-744.21,0.00027534,2]
[379185143,1755179465219,-400.0,0.00027534,2]
[379185144,1755179465231,-463.6705208,0.00027534,2]
[379185145,1755179465240,-453.5,0.00027534,2]
[379185146,1755179465250,-400.0,0.00027534,2]
[379185147,1755179465259,-3183.89,0.00027534,2]
[379185148,1755179465268,-400.0,0.00027534,2]
[379185149,1755179465278,-2855.68,0.00027534,2]
[379185150,1755179465288,-851.38,0.00027534,2]
[379185151,1755179465302,-400.0,0.00027534,2]
[379185152,1755179465310,-853.01,0.00027534,2]
[379185153,1755179465320,-3117.94,0.00027534,2]
[379185154,1755179465330,-400.0,0.00027534,2]
[379185155,1755179465339,-587.52,0.00027534,2]
[379185156,1755179465349,-400.0,0.00027534,2]
[379185157,1755179465358,-658.73,0.00027534,2]
[379185158,1755179465367,-477.96,0.00027534,2]
[379185159,1755179465377,-420.91,0.00027534,2]
[379185160,1755179465386,-1069.99,0.00027534,2]
[379185161,1755179465395,-400.0,0.00027534,2]
[379185162,1755179465405,-2850.6,0.00027534,2]
[379185163,1755179465414,-1182.0,0.00027534,2]
[379185164,1755179465423,-400.0,0.00027534,2]
[379185165,1755179465434,-400.0,0.00027534,2]
[379185166,1755179465443,-3021.49,0.00027534,2]
[379185167,1755179465453,-400.0,0.00027534,2]
[379185168,1755179465462,-650.67,0.00027534,2]
[379185169,1755179465472,-2445.369647,0.00027534,7]
[379185170,1755179465484,-2445.369647,0.00027534,7]
[379185171,1755179465494,-400.0,0.00027534,2]
[379185172,1755179465503,-3326.01,0.00027534,2]
[379185173,1755179465512,-400.0,0.00027534,2]
[379185174,1755179465522,-2964.4,0.00027534,2]
[379185175,1755179465532,-2443.64,0.00027534,2]
[379185176,1755179465542,-400.0,0.00027534,2]
[379185177,1755179465552,-1062.8,0.00027534,2]
[379185178,1755179465561,-2445.369647,0.00027534,7]
[379185179,1755179465571,-2445.369647,0.00027534,7]
[379185180,1755179465581,-400.0,0.00027534,2]
[379185181,1755179465591,-1119.73,0.00027534,2]
[379185182,1755179465600,-719.43,0.00027534,2]
[379185183,1755179465610,-400.0,0.00027534,2]
[379185184,1755179465619,-2727.79,0.00027534,2]
[379185185,1755179465628,-400.0,0.00027534,2]
[379185186,1755179465638,-2297.43,0.00027534,2]
[379185187,1755179465648,-2739.51,0.00027534,2]
[379185188,1755179465657,-4320.26,0.00027534,2]
[379185189,1755179465667,-953.48,0.00027534,2]
[379185190,1755179465676,-477.57,0.00027534,2]
[379185191,1755179465686,-400.0,0.00027534,2]
[379185192,1755179465696,-518.91,0.00027534,2]
[379185193,1755179465705,-3797.96,0.00027534,2]
[379185194,1755179465715,-400.0,0.00027534,2]
[379185195,1755179465724,-3088.96,0.00027534,2]
[379185196,1755179465736,-400.0,0.00027534,2]
[379185197,1755179465746,-675.72,0.00027534,2]
[379185198,1755179465756,-400.0,0.00027534,2]
[379185199,1755179465766,-1074.71,0.00027534,2]
[379185200,1755179465775,-2276.84,0.00027534,2]
[379185201,1755179465785,-601.86,0.00027534,2]
[379185202,1755179465795,-1658.24,0.00027534,2]
[379185203,1755179465804,-400.0,0.00027534,2]
[379185204,1755179465814,-400.0,0.00027534,2]
[379185205,1755179465824,-417.48,0.00027534,2]
[379185206,1755179465834,-400.0,0.00027534,2]
[379185207,1755179465843,-2727.25,0.00027534,2]
[379185208,1755179465853,-400.0,0.00027534,2]
[379185209,1755179465863,-890.66,0.00027534,2]
[379185210,1755179465873,-1824.1,0.00027534,2]
[379185211,1755179465882,-3409.33,0.00027534,2]
[379185212,1755179465892,-400.0,0.00027534,2]
[379185213,1755179465902,-1640.54,0.00027534,2]
[379185214,1755179465911,-628.08,0.00027534,2]
[379185215,1755179465921,-1245.8,0.00027534,2]
[379185216,1755179465931,-528.98,0.00027534,2]